{"text_format":"3","workbook":"xlsx","n_sheets":3,"sheets":["工程量清单一标","品牌要求","设计说明"],"not_rendered":{"images":7,"defined_names":3},"read":"whole","date_system":"1900"}

{"sheet":"工程量清单一标","index":0,"n_rows":52,"n_cols":10,"rows_kept":52,"merged":[[0,0,0,9],[45,0,45,4],[50,2,50,9]]}
["铝合金门窗清单（01包段）"]
["序号","标段划分","项目名称","项目特征描述","计量\n单位","工程量","含税单价（元）","含税合价（元）","品牌(注明:型材、\n玻璃、门锁品牌)","备注"]
[1,"01包段","普通铝合金平开门","1、外门窗框料采用普通铝合金。\n2、玻璃品种、厚度：6LoW-e+12A+6 中透光\n3、铝合金门窗用主型材基材壁厚：外门不小于2.2mm,内门不小于2.0mm\n4、五金材料、品种、规格：五金配件齐全（含一切相关辅材）及墙内外接缝打胶\n5、具体做法：详见图纸、图集、答疑、招标文件、政府相关文件、规范等其他资料，满足验收要求","m2",63.84,null,{"$f":"F3*G3","v":{"v":0,"d":"0.00"}},null,"竹丝湖服务区综合楼"]
[2,"01包段","断热铝合金推拉门","1、外门窗框料采用断热铝合金。\n2、玻璃品种、厚度：6LoW-e+12A+6 中透光\n3、铝合金门窗用主型材基材壁厚：外门不小于2.2mm,内门不小于2.0mm\n4、五金材料、品种、规格：五金配件齐全（含一切相关辅材）及墙内外接缝打胶\n5、具体做法：详见图纸、图集、答疑、招标文件、政府相关文件、规范等其他资料，满足验收要求","m2",374.48,null,{"v":0,"d":"0.00"},null,"竹丝湖服务区综合楼"]
[3,"01包段","断热铝合金平开窗","1、玻璃品种、厚度：6Low-e+19A(内置中空百叶)+6中透光\n2、铝合金门窗用主型材基材壁厚：外门不小于2.2mm,内门不小于2.0mm，外窗不小于1.8mm,内窗不小于1.4mm\n3、外门窗开启扇设置金刚纱窗扇\n4、五金材料、品种、规格：五金配件齐全（含一切相关辅材）及墙内外接缝打胶\n5、具体做法：详见图纸、图集、答疑、招标文件、政府相关文件、规范等其他资料，满足验收要求","m2",995.37,null,{"v":0,"d":"0.00"},null,"竹丝湖服务区综合楼"]
[4,"01包段","断热铝合金固定窗","1、玻璃品种、厚度：6Low-e+19A(内置中空百叶)+6中透光\n2、铝合金门窗用主型材基材壁厚：外门不小于2.2mm,内门不小于2.0mm，外窗不小于1.8mm,内窗不小于1.4mm\n3、外门窗开启扇设置金刚纱窗扇\n4、五金材料、品种、规格：五金配件齐全（含一切相关辅材）及墙内外接缝打胶\n5、具体做法：详见图纸、图集、答疑、招标文件、政府相关文件、规范等其他资料，满足验收要求","m2",28.42,null,{"v":0,"d":"0.00"},null,"竹丝湖服务区综合楼"]
[5,"01包段","断热铝合金中空玻璃固定窗（乙级防火窗）","1、玻璃品种、厚度：6Low-e+19A(内置中空百叶)+6中透光\n2、铝合金门窗用主型材基材壁厚：外门不小于2.2mm,内门不小于2.0mm，外窗不小于1.8mm,内窗不小于1.4mm\n3、外门窗开启扇设置金刚纱窗扇\n4、五金材料、品种、规格：五金配件齐全（含一切相关辅材）及墙内外接缝打胶\n5、具体做法：详见图纸、图集、答疑、招标文件、政府相关文件、规范等其他资料，满足验收要求","m2",150.48,null,{"v":0,"d":"0.00"},null,"竹丝湖服务区综合楼"]
[6,"01包段","断热铝合金中空玻璃平开窗+铝合金百叶窗(设防虫钢丝网)","1、玻璃品种、厚度：6Low-e+19A(内置中空百叶)+6中透光\n2、铝合金门窗用主型材基材壁厚：外门不小于2.2mm,内门不小于2.0mm，外窗不小于1.8mm,内窗不小于1.4mm\n3、外门窗开启扇设置金刚纱窗扇\n4、设防虫钢丝网\n5、五金材料、品种、规格：五金配件齐全（含一切相关辅材）及墙内外接缝打胶\n6、具体做法：详见图纸、图集、答疑、招标文件、政府相关文件、规范等其他资料，满足验收要求","m2",80.91,null,{"v":0,"d":"0.00"},null,"竹丝湖服务区综合楼"]
[7,"01包段","金属门","1、门名称、代号及洞口尺寸：超白长虹玻璃移门\n2、门材质：超厚超窄钛镁铝合金型材边框\n3、铝合金门窗用主型材基材壁厚：外门不小于2.2mm,内门不小于2.0mm\n4、含门套、锁具、把手、五金、附件等\n5、五金材料、品种、规格：五金配件齐全（含一切相关辅材）及墙内外接缝打胶\n6、具体做法：详见图纸、图集、答疑、招标文件、政府相关文件、规范等其他资料，满足验收要求","m2",96.2,null,{"v":0,"d":"0.00"},null,"竹丝湖服务区综合楼"]
[8,"01包段","断热铝合金平开门","1、玻璃品种、厚度：5中透Low-E+9 氩气+5\n2、铝合金门窗用主型材基材壁厚：外门不小于2.2mm,内门不小于2.0mm\n3、五金材料、品种、规格：五金配件齐全（含一切相关辅材）及墙内外接缝打胶\n4、具体做法：详见图纸、图集、答疑、招标文件、政府相关文件、规范等其他资料，满足验收要求","m2",42.48,null,{"v":0,"d":"0.00"},null,"竹丝湖服务区加油站房"]
[9,"01包段","80系列断热铝合金窗（中透光玻璃）","1、玻璃品种、厚度：5中透Low-E+19Ar(百叶)+5暖边\n2、铝合金门窗用主型材基材壁厚：外门不小于2.2mm,内门不小于2.0mm，外窗不小于1.8mm,内窗不小于1.4mm\n3、外门窗开启扇设置金刚纱窗扇\n4、五金材料、品种、规格：五金配件齐全（含一切相关辅材）及墙内外接缝打胶\n5、具体做法：详见图纸、图集、答疑、招标文件、政府相关文件、规范等其他资料，满足验收要求","m2",5.76,null,{"v":0,"d":"0.00"},null,"竹丝湖服务区加油站房"]
[10,"01包段","80系列断热铝合金窗（中透光玻璃）","1、玻璃品种、厚度：5中透Low-E+19Ar(百叶)+5暖边\n2、铝合金门窗用主型材基材壁厚：外门不小于2.2mm,内门不小于2.0mm，外窗不小于1.8mm,内窗不小于1.4mm\n3、外门窗开启扇设置金刚纱窗扇\n4、五金材料、品种、规格：五金配件齐全（含一切相关辅材）及墙内外接缝打胶\n5、具体做法：详见图纸、图集、答疑、招标文件、政府相关文件、规范等其他资料，满足验收要求","m2",93.6,null,{"v":0,"d":"0.00"},null,"竹丝湖服务区加油站房"]
[11,"01包段","80系列断热铝合金窗（中透光玻璃）","1、玻璃品种、厚度：5中透Low-E+19Ar(百叶)+5暖边\n2、铝合金门窗用主型材基材壁厚：外门不小于2.2mm,内门不小于2.0mm，外窗不小于1.8mm,内窗不小于1.4mm\n3、外门窗开启扇设置金刚纱窗扇\n4、五金材料、品种、规格：五金配件齐全（含一切相关辅材）及墙内外接缝打胶\n5、具体做法：详见图纸、图集、答疑、招标文件、政府相关文件、规范等其他资料，满足验收要求","m2",25.92,null,{"v":0,"d":"0.00"},null,"竹丝湖服务区加油站房"]
[12,"01包段","断热铝合金推拉门","1、外门窗框料采用断热铝合金。\n2、玻璃品种、厚度：5高透Low-E+19Ar（百叶）+5暖边\n3、铝合金门窗用主型材基材壁厚：外门不小于2.2mm,内门不小于2.0mm\n4、五金材料、品种、规格：五金配件齐全（含一切相关辅材）及墙内外接缝打胶\n5、具体做法：详见图纸、图集、答疑、招标文件、政府相关文件、规范等其他资料，满足验收要求","m2",8.1,null,{"v":0,"d":"0.00"},null,"竹丝湖服务区机修间"]
[13,"01包段","断热铝合金推拉窗","1、玻璃品种、厚度：5高透Low-E+19Ar（百叶）+5暖边\n2、铝合金门窗用主型材基材壁厚：外门不小于2.2mm,内门不小于2.0mm，外窗不小于1.8mm,内窗不小于1.4mm\n3、外门窗开启扇设置金刚纱窗扇\n4、含消防救援窗\n5、五金材料、品种、规格：五金配件齐全（含一切相关辅材）及墙内外接缝打胶\n6、具体做法：详见图纸、图集、答疑、招标文件、政府相关文件、规范等其他资料，满足验收要求","m2",93.42,null,{"v":0,"d":"0.00"},null,"竹丝湖服务区机修间"]
[14,"01包段","断热铝合金平开门","1、外门窗框料采用断热铝合金。\n2、玻璃品种、厚度：6LoW-e+12A+6 中透光\n3、铝合金门窗用主型材基材壁厚：外门不小于2.2mm,内门不小于2.0mm\n4、五金材料、品种、规格：五金配件齐全（含一切相关辅材）及墙内外接缝打胶\n5、具体做法：详见图纸、图集、答疑、招标文件、政府相关文件、规范等其他资料，满足验收要求","m2",35.46,null,{"v":0,"d":"0.00"},null,"牛埠收费站办公楼与食堂"]
[15,"01包段","断热铝合金窗","1、玻璃品种、厚度：5高透Low-E+19Ar（百叶）+5暖边\n2、铝合金门窗用主型材基材壁厚：外门不小于2.2mm,内门不小于2.0mm，外窗不小于1.8mm,内窗不小于1.4mm\n3、外门窗开启扇设置金刚纱窗扇\n4、含消防救援窗\n5、五金材料、品种、规格：五金配件齐全（含一切相关辅材）及墙内外接缝打胶\n6、具体做法：详见图纸、图集、答疑、招标文件、政府相关文件、规范等其他资料，满足验收要求","m2",184.5,null,{"v":0,"d":"0.00"},null,"牛埠收费站办公楼与食堂"]
[16,"01包段","普通铝合金固定窗","1、窗材质：普通铝合金固定窗\n2、玻璃品种、厚度：5高透Low-E+19Ar（百叶）+5暖边\n3、铝合金门窗用主型材基材壁厚：外门不小于2.2mm,内门不小于2.0mm，外窗不小于1.8mm,内窗不小于1.4mm\n4、五金材料、品种、规格：五金配件齐全（含一切相关辅材）及墙内外接缝打胶\n5、具体做法：详见图纸、图集、答疑、招标文件、政府相关文件、规范等其他资料，满足验收要求","m2",6.3,null,{"v":0,"d":"0.00"},null,"牛埠收费站办公楼与食堂"]
[17,"01包段","断热铝合金平开门","1、外门窗框料采用断热铝合金。\n2、玻璃品种、厚度：6LoW-e+12A+6 中透光\n3、铝合金门窗用主型材基材壁厚：外门不小于2.2mm,内门不小于2.0mm\n4、五金材料、品种、规格：五金配件齐全（含一切相关辅材）及墙内外接缝打胶\n5、具体做法：详见图纸、图集、答疑、招标文件、政府相关文件、规范等其他资料，满足验收要求","m2",19.68,null,{"v":0,"d":"0.00"},null,"牛埠收费站宿舍楼"]
[18,"01包段","断热铝合金窗","1、玻璃品种、厚度：5高透Low-E+19Ar（百叶）+5暖边\n2、铝合金门窗用主型材基材壁厚：外门不小于2.2mm,内门不小于2.0mm，外窗不小于1.8mm,内窗不小于1.4mm\n3、外门窗开启扇设置金刚纱窗扇\n4、含消防救援窗\n5、五金材料、品种、规格：五金配件齐全（含一切相关辅材）及墙内外接缝打胶\n6、具体做法：详见图纸、图集、答疑、招标文件、政府相关文件、规范等其他资料，满足验收要求","m2",223.2,null,{"v":0,"d":"0.00"},null,"牛埠收费站宿舍楼"]
[19,"01包段","成品断桥铝移门","1、门材质：成品断桥铝移门\n2、玻璃品种、厚度：5高透Low-E+19Ar（百叶）+5暖边\n3、铝合金门窗用主型材基材壁厚：外门不小于2.2mm,内门不小于2.0mm\n4、含门套、锁具、把手、五金、附件等\n5、五金材料、品种、规格：五金配件齐全（含一切相关辅材）及墙内外接缝打胶\n6、具体做法：详见图纸、图集、答疑、招标文件、政府相关文件、规范等其他资料，满足验收要求","m2",115.2,null,{"v":0,"d":"0.00"},null,"牛埠收费站宿舍楼精装"]
[20,"01包段","80系列铝合金窗平推拉窗","1、玻璃品种、厚度：6mm厚钢化白玻璃\n2、铝合金门窗用主型材基材壁厚：外门不小于2.2mm,内门不小于2.0mm，外窗不小于1.8mm,内窗不小于1.4mm\n3、含消防救援窗\n4、外窗开启扇均带金刚纱纱窗\n5、五金材料、品种、规格：五金配件齐全（含一切相关辅材）及墙内外接缝打胶\n6、具体做法：详见图纸、图集、答疑、招标文件、政府相关文件、规范等其他资料，满足验收要求","m2",70.92,null,{"v":0,"d":"0.00"},null,"牛埠收费站设备房"]
[21,"01包段","断热铝合金推拉门","1、外门窗框料采用断热铝合金。\n2、玻璃品种、厚度：中空玻璃\n3、铝合金门窗用主型材基材壁厚：外门不小于2.2mm,内门不小于2.0mm\n4、五金材料、品种、规格：五金配件齐全（含一切相关辅材）及墙内外接缝打胶\n5、具体做法：详见图纸、图集、答疑、招标文件、政府相关文件、规范等其他资料，满足验收要求","m2",2.64,null,{"v":0,"d":"0.00"},null,"牛埠收费站门房"]
[22,"01包段","断热铝合金平开窗","1、玻璃品种、厚度：6Low-e+19A(内置中空百叶)+6中透光\n2、铝合金门窗用主型材基材壁厚：外门不小于2.2mm,内门不小于2.0mm，外窗不小于1.8mm,内窗不小于1.4mm\n3、外门窗开启扇设置金刚纱窗扇\n4、五金材料、品种、规格：五金配件齐全（含一切相关辅材）及墙内外接缝打胶\n5、具体做法：详见图纸、图集、答疑、招标文件、政府相关文件、规范等其他资料，满足验收要求","m2",10.8,null,{"v":0,"d":"0.00"},null,"牛埠收费站门房"]
[23,"01包段","金属门","1、自动密闭铝合金平开门\n2、门名称、代号及洞口尺寸：LM1021\n3、玻璃：12厚钢化玻璃\n4、铝合金门窗用主型材基材壁厚：外门不小于2.2mm,内门不小于2.0mm\n5、包含门套以及所有五金配件\n6、五金材料、品种、规格：五金配件齐全（含一切相关辅材）及墙内外接缝打胶\n7、具体做法：详见图纸、图集、答疑、招标文件、政府相关文件、规范等其他资料，满足验收要求","m2",6,null,{"v":0,"d":"0.00"},null,"陈瑶湖收费站交警营房晾衣房"]
[24,"01包段","铝合金磨砂玻璃门","1、外门窗框料采用普通铝合金。\n2、玻璃品种、厚度：5高透Low-E+19Ar（百叶）+5暖边\n3、铝合金门窗用主型材基材壁厚：外门不小于2.2mm,内门不小于2.0mm\n4、五金材料、品种、规格：五金配件齐全（含一切相关辅材）及墙内外接缝打胶\n5、具体做法：详见图纸、图集、答疑、招标文件、政府相关文件、规范等其他资料，满足验收要求","m2",28.35,null,{"v":0,"d":"0.00"},null,"陈瑶湖收费站交警营房综合楼"]
[25,"01包段","铝合金玻璃门","1、外门窗框料采用普通铝合金。\n2、玻璃品种、厚度：5高透Low-E+19Ar（百叶）+5暖边\n3、铝合金门窗用主型材基材壁厚：外门不小于2.2mm,内门不小于2.0mm\n4、五金材料、品种、规格：五金配件齐全（含一切相关辅材）及墙内外接缝打胶\n5、具体做法：详见图纸、图集、答疑、招标文件、政府相关文件、规范等其他资料，满足验收要求","m2",31.35,null,{"v":0,"d":"0.00"},null,"陈瑶湖收费站交警营房综合楼"]
[26,"01包段","普通铝合金窗","1、玻璃品种、厚度：5中透光Low-E+12氩气+5\n2、铝合金门窗用主型材基材壁厚：外门不小于2.2mm,内门不小于2.0mm，外窗不小于1.8mm,内窗不小于1.4mm\n3、外门窗开启扇设置金刚纱窗扇\n4、含消防救援窗\n5、五金材料、品种、规格：五金配件齐全（含一切相关辅材）及墙内外接缝打胶\n6、具体做法：详见图纸、图集、答疑、招标文件、政府相关文件、规范等其他资料，满足验收要求","m2",108,null,{"v":0,"d":"0.00"},null,"陈瑶湖收费站交警营房综合楼"]
[27,"01包段","普通铝合金","1、玻璃品种、厚度：5高透Low-E+19Ar（百叶）+5暖边\n2、外门窗开启扇设置金刚纱窗扇\n3、五金材料、品种、规格：五金配件齐全（含一切相关辅材）及墙内外接缝打胶\n4、具体做法：详见图纸、图集、答疑、招标文件、政府相关文件、规范等其他资料，满足验收要求","m2",124.8,null,{"v":0,"d":"0.00"},null,"陈瑶湖收费站交警营房综合楼"]
[28,"01包段","金属防火窗","1、5高透Low-E+19Ar（百叶）+5暖边\n2、铝合金门窗用主型材基材壁厚：外门不小于2.2mm,内门不小于2.0mm，外窗不小于1.8mm,内窗不小于1.4mm\n3、耐火极限不低于1.5H\n4、外门窗开启扇设置金刚纱窗扇\n5、五金材料、品种、规格：五金配件齐全（含一切相关辅材）及墙内外接缝打胶\n6、具体做法：详见图纸、图集、答疑、招标文件、政府相关文件、规范等其他资料，满足验收要求","m2",3,null,{"v":0,"d":"0.00"},null,"陈瑶湖收费站交警营房综合楼"]
[29,"01包段","断热铝合金平开门","1、外门窗框料采用断热铝合金。\n2、玻璃品种、厚度：6LoW-e+12A+6 中透光\n3、铝合金门窗用主型材基材壁厚：外门不小于2.2mm,内门不小于2.0mm\n4、五金材料、品种、规格：五金配件齐全（含一切相关辅材）及墙内外接缝打胶\n5、具体做法：详见图纸、图集、答疑、招标文件、政府相关文件、规范等其他资料，满足验收要求","m2",35.46,null,{"v":0,"d":"0.00"},null,"陈瑶湖收费站办公楼与食堂"]
[30,"01包段","断热铝合金窗","1、玻璃品种、厚度：5高透Low-E+19Ar（百叶）+5暖边\n2、铝合金门窗用主型材基材壁厚：外门不小于2.2mm,内门不小于2.0mm，外窗不小于1.8mm,内窗不小于1.4mm\n3、外门窗开启扇设置金刚纱窗扇\n4、含消防救援窗\n5、五金材料、品种、规格：五金配件齐全（含一切相关辅材）及墙内外接缝打胶\n6、具体做法：详见图纸、图集、答疑、招标文件、政府相关文件、规范等其他资料，满足验收要求","m2",184.5,null,{"v":0,"d":"0.00"},null,"陈瑶湖收费站办公楼与食堂"]
[31,"01包段","普通铝合金固定窗","1、窗材质：普通铝合金固定窗\n2、玻璃品种、厚度：5高透Low-E+19Ar（百叶）+5暖边\n3、铝合金门窗用主型材基材壁厚：外门不小于2.2mm,内门不小于2.0mm，外窗不小于1.8mm,内窗不小于1.4mm\n4、五金材料、品种、规格：五金配件齐全（含一切相关辅材）及墙内外接缝打胶\n5、具体做法：详见图纸、图集、答疑、招标文件、政府相关文件、规范等其他资料，满足验收要求","m2",6.3,null,{"v":0,"d":"0.00"},null,"陈瑶湖收费站办公楼与食堂"]
[32,"01包段","断热铝合金平开门","1、外门窗框料采用断热铝合金。\n2、玻璃品种、厚度：6LoW-e+12A+6 中透光\n3、铝合金门窗用主型材基材壁厚：外门不小于2.2mm,内门不小于2.0mm\n4、五金材料、品种、规格：五金配件齐全（含一切相关辅材）及墙内外接缝打胶\n5、具体做法：详见图纸、图集、答疑、招标文件、政府相关文件、规范等其他资料，满足验收要求","m2",19.68,null,{"v":0,"d":"0.00"},null,"陈瑶湖收费站宿舍楼"]
[33,"01包段","断热铝合金窗","1、玻璃品种、厚度：5高透Low-E+19Ar（百叶）+5暖边\n2、铝合金门窗用主型材基材壁厚：外门不小于2.2mm,内门不小于2.0mm，外窗不小于1.8mm,内窗不小于1.4mm\n3、外门窗开启扇设置金刚纱窗扇\n4、含消防救援窗\n5、五金材料、品种、规格：五金配件齐全（含一切相关辅材）及墙内外接缝打胶\n6、具体做法：详见图纸、图集、答疑、招标文件、政府相关文件、规范等其他资料，满足验收要求","m2",223.2,null,{"v":0,"d":"0.00"},null,"陈瑶湖收费站宿舍楼"]
[34,"01包段","成品断桥铝移门","1、门材质：成品断桥铝移门\n2、玻璃品种、厚度：5高透Low-E+19Ar（百叶）+5暖边\n3、铝合金门窗用主型材基材壁厚：外门不小于2.2mm,内门不小于2.0mm\n4、含门套、锁具、把手、五金、附件等\n5、五金材料、品种、规格：五金配件齐全（含一切相关辅材）及墙内外接缝打胶\n6、具体做法：详见图纸、图集、答疑、招标文件、政府相关文件、规范等其他资料，满足验收要求","m2",115.2,null,{"v":0,"d":"0.00"},null,"陈瑶湖收费站宿舍楼精装"]
[35,"01包段","80系列铝合金窗平推拉窗","1、玻璃品种、厚度：6mm厚钢化白玻璃\n2、铝合金门窗用主型材基材壁厚：外门不小于2.2mm,内门不小于2.0mm，外窗不小于1.8mm,内窗不小于1.4mm\n3、含消防救援窗\n4、外窗开启扇均带金刚纱纱窗\n5、五金材料、品种、规格：五金配件齐全（含一切相关辅材）及墙内外接缝打胶\n6、具体做法：详见图纸、图集、答疑、招标文件、政府相关文件、规范等其他资料，满足验收要求","m2",33.48,null,{"v":0,"d":"0.00"},null,"陈瑶湖收费站设备房"]
[36,"01包段","断热铝合金推拉门","1、外门窗框料采用断热铝合金。\n2、玻璃品种、厚度：中空玻璃\n3、铝合金门窗用主型材基材壁厚：外门不小于2.2mm,内门不小于2.0mm\n4、五金材料、品种、规格：五金配件齐全（含一切相关辅材）及墙内外接缝打胶\n5、具体做法：详见图纸、图集、答疑、招标文件、政府相关文件、规范等其他资料，满足验收要求","m2",2.64,null,{"v":0,"d":"0.00"},null,"陈瑶湖收费站门房"]
[37,"01包段","断热铝合金平开窗","1、玻璃品种、厚度：6Low-e+19A(内置中空百叶)+6中透光\n2、铝合金门窗用主型材基材壁厚：外门不小于2.2mm,内门不小于2.0mm，外窗不小于1.8mm,内窗不小于1.4mm\n3、外门窗开启扇设置金刚纱窗扇\n4、五金材料、品种、规格：五金配件齐全（含一切相关辅材）及墙内外接缝打胶\n5、具体做法：详见图纸、图集、答疑、招标文件、政府相关文件、规范等其他资料，满足验收要求","m2",10.8,null,{"v":0,"d":"0.00"},null,"陈瑶湖收费站门房"]
[38,"01包段","安全玻璃门","1、外门窗框料采用普通铝合金。\n2、铝合金门窗用主型材基材壁厚：外门不小于2.2mm,内门不小于2.0mm\n3、安全玻璃的做法应满足须符合《建筑玻璃应用技术规程》《建筑安全玻璃管理规定》及相关图纸和规范\n4、五金材料、品种、规格：五金配件齐全（含一切相关辅材）及墙内外接缝打胶\n5、具体做法：详见图纸、图集、答疑、招标文件、政府相关文件、规范等其他资料，满足验收要求","m2",4.35,null,{"v":0,"d":"0.00"},null,"养护工区综合楼"]
[39,"01包段","断热铝合金门联窗","1、外门窗框料采用断热铝合金。\n2、玻璃品种、厚度：5高透Low-E+19Ar（百叶）+5暖边\n3、铝合金门窗用主型材基材壁厚：外门不小于2.2mm,内门不小于2.0mm，外窗不小于1.8mm,内窗不小于1.4mm\n4、五金材料、品种、规格：五金配件齐全（含一切相关辅材）及墙内外接缝打胶\n5、具体做法：详见图纸、图集、答疑、招标文件、政府相关文件、规范等其他资料，满足验收要求","m2",310.31,null,{"v":0,"d":"0.00"},null,"养护工区综合楼"]
[40,"01包段","断热铝合金窗","1、玻璃品种、厚度：5高透Low-E+19Ar（百叶）+5暖边\n2、铝合金门窗用主型材基材壁厚：外门不小于2.2mm,内门不小于2.0mm，外窗不小于1.8mm,内窗不小于1.4mm\n3、外门窗开启扇设置金刚纱窗扇\n4、五金材料、品种、规格：五金配件齐全（含一切相关辅材）及墙内外接缝打胶\n5、具体做法：详见图纸、图集、答疑、招标文件、政府相关文件、规范等其他资料，满足验收要求","m2",216.12,null,{"v":0,"d":"0.00"},null,"养护工区综合楼"]
[41,"01包段","普通门","1、外门窗框料采用普通铝合金。\n2、玻璃品种、厚度：6厚钢化白玻璃\n3、铝合金门窗用主型材基材壁厚：外门不小于2.2mm,内门不小于2.0mm\n4、五金材料、品种、规格：五金配件齐全（含一切相关辅材）及墙内外接缝打胶\n5、具体做法：详见图纸、图集、答疑、招标文件、政府相关文件、规范等其他资料，满足验收要求","m2",3.15,null,{"v":0,"d":"0.00"},null,"养护工区设备房"]
[42,"01包段","金属窗","1、窗材质：6厚钢化白玻璃铝合金推拉窗\n2、铝合金门窗用主型材基材壁厚：外门不小于2.2mm,内门不小于2.0mm，外窗不小于1.8mm,内窗不小于1.4mm\n3、含消防救援窗\n4、所有窗户均需外设金刚纱纱窗\n5、五金材料、品种、规格：五金配件齐全（含一切相关辅材）及墙内外接缝打胶\n6、具体做法：详见图纸、图集、答疑、招标文件、政府相关文件、规范等其他资料，满足验收要求","m2",10.08,null,{"v":0,"d":"0.00"},null,"养护工区设备房"]
[43,"01包段","手动开窗器",null,"套",50,null,{"v":0,"d":"0.00"},null,"新增"]
["合计",{"$nulls":6},{"$f":"SUM(H3:H45)","v":0}]
["说明：",null,"1.图纸说明内容"]
[null,null,"2.招标文件品牌要求"]
[null,null,"3.材料进场报验，试验检测要求，成品保护，垃圾清扫"]
[null,null,"4.铝合金门窗用主型材基材壁厚(附件功能槽口处的翅肆壁厚除外)公称尺寸：外门不小于2.2,内门不小于2.0，外窗不小于1.8,内窗不小于1.4"]
[null,null,"5.原厂加工合片即原厂原片（超白浮法玻璃原片至最终中空成品玻璃组件务必在同一品牌厂家完成，包括切割、磨边、钢化、镀膜、夹胶、合中空、包装等工艺均在原厂完成，不接受镀膜大板 LOW-E 产品异地加工或组装深加工）；颜色根据设计要求调整，价格不调整；达到国家玻璃使用规范要求，所有玻璃必须贴保护膜、带有品牌商标 LOGO 标志"]
[null,null,"6.开具增值税专用电子发票，税率13%"]

{"sheet":"品牌要求","index":1,"n_rows":0,"n_cols":0,"rows_kept":0}

{"sheet":"设计说明","index":2,"n_rows":0,"n_cols":0,"rows_kept":0}